Cogmind - Beta 10.2 @@@ ROGUE MODE // 2021.04.24 @ 00:21:21 Player: nprez Result: Destroyed by S-10 Pest with Light Assault Rifle Performance ------------- Evolutions (0) 0 Regions Visited (2) 400 Robots Destroyed (30) 150 Value Destroyed (626) 626 Prototype IDs (0) 0 Alien Tech Used (0) 0 Bonus (0) 0 TOTAL SCORE: 1176 Bonus ------- None Cogmind --------- Core Integrity 0/250 Matter 280/300 Energy 250/250 System Corruption 3% Temperature Cool (123) Movement Walking (150) Ox1 Location -10/Mines Parts ------- > --- POWER (1) -------- Ion Engine > --- PROPULSION (2) --- Aluminum Leg Carbon-fiber Leg > --- UTILITY (2) ------ Medium Storage Unit Hardened Medium Armor Plating > --- WEAPON (2) ------- Particle Gun Axe > --- INVENTORY (8) ---- Light Ion Engine Aluminum Leg Aluminum Leg Improved Heat Sink Medium Battery (200) Small Laser Small Laser Rocket Launcher Peak State ------------ > --- POWER ------------ Ion Engine > --- PROPULSION ------- Aluminum Leg Carbon-fiber Leg > --- UTILITY ---------- Medium Storage Unit Hardened Medium Armor Plating > --- WEAPON ----------- Particle Gun Axe > --- INVENTORY -------- Light Ion Engine Aluminum Leg Aluminum Leg Improved Heat Sink Medium Battery Small Laser Small Laser Rocket Launcher [Rating: 15] Favorites ----------- Power Ion Engine Engine Ion Engine Power Core Light Nuclear Core Propulsion Aluminum Leg Treads Light Treads Leg Aluminum Leg Utility Medium Storage Unit Device Structural Scanner Storage Medium Storage Unit Processor Seismic Analyzer Protection Hardened Medium Armor Plating Weapon Small Laser Energy Gun Small Laser Ballistic Gun Light Assault Rifle Ballistic Cannon Light Cannon Launcher Grenade Launcher Special Weapon Mining Laser Slashing Weapon Axe Build | -11 -10 -10 ------- Run | Scr Mat Min Slots Evolved . | . . . Power . | . . . Propulsion . | . . . Utility . | . . . Weapon . | . . . Parts Attached 56 | 6 28 22 Power 7 | 2 1 4 Engine 6 | 2 1 3 Core 1 | . . 1 Reactor . | . . . Propulsion 10 | 2 3 5 Treads 1 | . 1 . Leg 9 | 2 2 5 Wheel . | . . . Hover . | . . . Flight . | . . . Utility 10 | . 8 2 Device 3 | . 2 1 Storage 5 | . 5 . Processor 1 | . 1 . Hackware . | . . . Protection 1 | . . 1 Artifact . | . . . Weapon 29 | 2 16 11 Energy Gun 8 | 1 1 6 Energy Cannon . | . . . Ballistic Gun 9 | 1 6 2 Ballistic Cannon 2 | . 2 . Launcher 6 | . 5 1 Special Weapon 2 | . 2 . Impact Weapon . | . . . Slashing Weapon 2 | . . 2 Piercing Weapon . | . . . Special Melee Weapon . | . . . Unidentified Prototypes . | . . . Parts Lost 4 | . . 4 Power . | . . . Propulsion . | . . . Utility 1 | . . 1 Weapon 3 | . . 3 Highest Loss Streak 3 | . . 3 Average Slot Usage (%) 97 | . 96 98 Engine 14 | . 14 14 Leg 28 | . 28 28 Storage 19 | . 22 15 Protection 4 | . . 11 Energy Gun 11 | . 2 24 Ballistic Gun 9 | . 14 1 Ballistic Cannon 3 | . 5 . Special Weapon 2 | . 4 . Naked Turns . | . . . Heaviest Build 27 | 8 26 27 Greatest Support 25 | 20 20 25 Greatest Overweight (x) 1 | . 1 1 Average Overweight (x) . | . . . Largest Inventory Capacity 16 | 4 16 8 Average Capacity 7 | 4 7 8 Most Carried 8 | 4 8 8 Average Carried 6 | 2 6 7 Final Capacity 8 | 4 8 8 Final Carried 8 | 4 8 8 Class Distribution -------------------- 64% | Mutant 35% | Scavenger-Mutant Dominant Class ---------------- Mutant | -10/Materials Scavenger-Mutant | -10/Mines Resources | -11 -10 -10 ----------- Run | Scr Mat Min Matter Collected 896 | 261 395 240 Remotely . | . . . Salvage Created 543 | 50 291 202 Parts 60 | 3 36 21 Haulers Intercepted . | . . . Recyclers Shooed . | . . . Parts Field Recycled . | . . . Retrieved Matter . | . . . Parts Self-Destructed . | . . . Prevented . | . . . Kills | -11 -10 -10 ------- Run | Scr Mat Min Combat Hostiles Destroyed 21 | 1 14 6 Guns 9 | 1 4 4 Cannons 4 | . 3 1 AOE 8 | . 7 1 Classes Destroyed 7 | 1 4 2 Worker 3 | . 2 1 Builder 1 | . . 1 Tunneler 1 | . 1 . Recycler 1 | . . 1 Watcher 3 | . 3 . Swarmer 9 | . 9 . Grunt 12 | 1 5 6 Best Kill Streak 5 | 1 4 5 Combat Bots Only 4 | 1 4 2 Max Kills in Single Turn 2 | 1 2 2 Gunslinging 1 | . 1 . Exploded 2 | . 2 1 Melee . | . . . Uniques/NPCs Destroyed . | . . . Combat | -11 -10 -10 -------- Run | Scr Mat Min Damage Taken 1197 | 11 538 648 Core 257 | . 107 150 Absorbed by Shields . | . . . Core Remaining (%) 100 | 100 . . Volleys Fired 68 | 1 38 29 Largest 2 | 2 2 2 Hottest 120 | 60 85 120 Shots Fired 108 | 2 68 38 Gun 69 | 2 39 28 Cannon 20 | . 20 . Launcher 16 | . 9 7 Special 3 | . . 3 Kinetic 61 | 1 46 14 Thermal 25 | . 8 17 Explosive 16 | . 9 7 Electromagnetic 6 | 1 5 . Robot Hit Streak 9 | 1 4 9 Robot Miss Streak 5 | 1 5 4 Penetration Max . | . . . Secondary Targets 2 | . 2 . Max Gunslinging Chain 1 | . 1 . Shots Hit Robots 57 | 1 30 26 Core Hits 53 | 2 24 27 Critical Hits . | . . . Critical Kills . | . . . Critical Parts Destroyed . | . . . Melee Attacks . | . . . Impact . | . . . Slashing . | . . . Piercing . | . . . Sneak Attacks . | . . . Combat Hostiles . | . . . Follow-up Attacks . | . . . Damage Inflicted 1720 | 18 1047 655 Guns 438 | 18 220 200 Cannons 177 | . 177 . Explosions 1033 | . 650 383 Melee . | . . . Ramming . | . . . Kinetic 428 | 6 328 94 Thermal 214 | . 36 178 Explosive 1033 | . 650 383 Electromagnetic 45 | 12 33 . Impact . | . . . Slashing . | . . . Piercing . | . . . Highest Corruption 3 | . 3 3 Average Corruption 2 | . 2 3 Corruption Purged . | . . . Effects 19 | . 5 14 Message Errors 7 | . 4 3 Matter Fused 3 | . . 3 Heat Flow Errors 2 | . . 2 Energy Discharges 2 | . . 2 Data Loss (minor) 2 | . 1 1 Targeting Errors 2 | . . 2 Weapon Failures 1 | . . 1 Overload Shots . | . . . Overflow Damage 55 | . 40 15 Projectiles . | . . . Explosions 55 | . 40 15 Melee . | . . . Knockbacks 1 | . 1 . Impact . | . . . Kinetic 1 | . 1 . Secondary . | . . . Self-Inflicted Damage 252 | . 169 83 Shots 8 | . 4 4 Rammed . | . . . Targets Rammed . | . . . Kicked . | . . . Crushed . | . . . Highest Temperature 274 | 26 90 274 Average Temperature 54 | 16 22 73 Received Heat Transfer 405 | 6 120 279 Siege Activations . | . . . Robots Corrupted . | . . . Combat Hostiles . | . . . Parts Fried . | . . . Impact Corruptions . | . . . Robots Melted . | . . . Combat Hostiles . | . . . Parts Melted . | . . . Heat Transferred 498 | . 111 387 Parts Sabotaged . | . . . Parts Stolen . | . . . Parts Stripped . | . . . Power Chain Reactions . | . . . Missiles Intercepted . | . . . Alert | -11 -10 -10 ------- Run | Scr Mat Min Peak Influence 258 | 20 258 138 Initial 63 | . 13 63 Average 99 | 5 119 82 Maximum Alert Level 1 | . 1 . Low Security (%) 90 | 100 83 100 Level 1 9 | . 16 . Level 2 . | . . . Level 3 . | . . . Level 4 . | . . . Level 5 . | . . . High Security . | . . . Max Security . | . . . Squads Dispatched 4 | . 3 1 Investigation 2 | . 1 1 Extermination . | . . . Reinforcement 2 | . 2 . Assault . | . . . Garrison . | . . . Intercept . | . . . Construction Impeded . | . . . Haulers Reinforced . | . . . Stealth | -11 -10 -10 --------- Run | Scr Mat Min Distress Signals 1 | . 1 . Communications Jammed . | . . . Distress Signals . | . . . Times Spotted 34 | 1 25 8 Peak Tracking Total 4 | 1 4 3 Tactical Retreats . | . . . Traps | -11 -10 -10 ------- Run | Scr Mat Min Traps Triggered 2 | . 2 . Indirectly . | . . . Trap Hack Attempts . | . . . Triggered . | . . . Disarmed . | . . . Reprogrammed . | . . . Reused . | . . . Traps Extracted . | . . . Installed . | . . . Triggered . | . . . Machines | -11 -10 -10 ---------- Run | Scr Mat Min Machines Disabled 2 | . 2 . Max in Single Turn 1 | . 1 . Machines Sabotaged . | . . . Garrisons Compromised . | . . . Overloaded Fab Kills . | . . . Fab Network Shutdowns . | . . . Hacking | -11 -10 -10 --------- Run | Scr Mat Min Machines Accessed 7 | . 6 1 Terminals 3 | . 3 . Fabricators . | . . . Repair Stations 1 | . 1 . Recycling Units 2 | . 2 . Scanalyzers . | . . . Garrison Access . | . . . Total Hacks 20 | . 19 1 Successful 17 | . 16 1 Failed 3 | . 3 . Catastrophic . | . . . Database Lockouts . | . . . Manual . | . . . Terminals 5 | . 5 . Fabricators . | . . . Repair Stations 5 | . 5 . Recycling Units 9 | . 9 . Scanalyzers . | . . . Garrison Access . | . . . Terminal Hacks 6 | . 5 1 Record 4 | . 4 . Open Door 1 | . . 1 Alert Level 1 | . 1 . Fabricator Hacks . | . . . Repair Station Hacks 2 | . 2 . Scan Component 1 | . 1 . Repair 1 | . 1 . Recycling Unit Hacks 9 | . 9 . Recycle Component 1 | . 1 . Process 1 | . 1 . Report Inventory 2 | . 2 . Retrieve Matter 3 | . 3 . Retrieve Components 2 | . 2 . Scanalyzer . | . . . Garrison Access Hacks . | . . . Unauthorized Hacks . | . . . Terminals . | . . . Fabricators . | . . . Repair Stations . | . . . Recycling Units . | . . . Scanalyzers . | . . . Garrison Access . | . . . Data Cores Recovered . | . . . Used . | . . . Hacking Detections 3 | . 3 . Full Trace Events 2 | . 2 . Feedback Events . | . . . Feedback Blocked . | . . . Robot Schematics Acquired . | . . . Robots Built . | . . . Matter . | . . . Time . | . . . Total Robot Build Rating . | . . . Part Schematics Acquired . | . . . Parts Built . | . . . Matter . | . . . Time . | . . . Total Part Build Rating . | . . . Parts Repaired 1 | . 1 . Time 26 | . 26 . Parts Recycled 1 | . 1 . Recycled Matter 18 | . 18 . Retrieved Matter 256 | . 256 . Retrieved Components 10 | . 10 . Parts Scanalyzed . | . . . Part Schematics Acquired . | . . . Parts Damaged . | . . . Bothacking | -11 -10 -10 ------------ Run | Scr Mat Min Used RIF Installer . | . . . Robots Hacked . | . . . Non-combat . | . . . Combat . | . . . Robot Hacks Applied . | . . . Relay Couplers Released . | . . . Robots Rewired . | . . . Allies Hacked . | . . . Hacks Repelled . | . . . Allies | -11 -10 -10 -------- Run | Scr Mat Min Total Allies . | . . . Largest Group . | . . . Highest-Rated Group . | . . . Highest-Rated Ally . | . . . Total Orders . | . . . Ally Attacks . | . . . Total Damage . | . . . Kills . | . . . Allies Corrupted . | . . . Allies Melted . | . . . Intel | -11 -10 -10 ------- Run | Scr Mat Min Robot Analysis Total . | . . . Derelict Logs Recovered 2 | . . 2 Drone Launches . | . . . Drone Recoveries . | . . . Exploration | -11 -10 -10 ------------- Run | Scr Mat Min Turns Passed 1937 | 106 1110 721 Spaces Moved 1319 | 82 769 468 Core 20 | 20 . . Treads . | . . . Legs 1299 | 62 769 468 Wheels . | . . . Hover . | . . . Flight . | . . . Fastest Speed 50 | 50 120 120 Average Speed 119 | 102 120 120 Slowest Speed 150 | 120 150 150 Overloaded Moves . | . . . Propulsion Burnouts . | . . . Robots Hopped . | . . . Cave-ins Triggered . | . . . Exploration Rate (%) 58 | 9 92 74 Regions Visited 2 Branch Regions 1 Pre-discovered Areas . | . . . Known Exits Taken . | . . . Unknown Exits Taken 2 | 1 1 . Scrap Searched 1 | . . 1 Spaces Dug . | . . . Terrain Destroyed 65 | . 47 18 Melee . | . . . Projectile . | . . . AOE 65 | . 47 18 Terrain Rammed . | . . . Walls Destroyed . | . . . Machines Disabled . | . . . Actions | -11 -10 -10 --------- Run | Scr Mat Min Total 1573 | 102 887 584 Wait 56 | . 18 38 Move 1317 | 81 768 468 Hop . | . . . Pick Up 41 | 11 18 12 Fast Attach 9 | 1 5 3 Attach 12 | 4 5 3 Detach 1 | . 1 . Swap 35 | 1 18 16 Drop 34 | 3 16 15 Fire 68 | 1 38 29 Melee . | . . . Ram . | . . . Kick . | . . . Crush . | . . . Escape Stasis . | . . . Rewire . | . . . Trap . | . . . Miscellaneous . | . . . Route ------- -11/Scrapyard -10/Materials (discovered 5 exits: [*Mat x3] / *Min x2) -10/Mines (discovered 2 exits: [*Mat x2]) History --------- Turn | Location | Event 2 | -11/Scrapyard | Met Revision 17 72 | -11/Scrapyard | Discovered new exit (range 8) 107 | -11/Scrapyard | Entered Materials 151 | -10/Materials | Discovered new exit (range 5) 198 | -10/Materials | Discovered new exit (range 13) 314 | -10/Materials | Build established: Mutant 336 | -10/Materials | Discovered new exit (range 4) 552 | -10/Materials | Repaired Assault Rifle? 638 | -10/Materials | Discovered new exit (range 11) 895 | -10/Materials | Discovered new exit (range 15) 1217 | -10/Materials | Entered Mines 1234 | -10/Mines | Core integrity fell below 50% 1293 | -10/Mines | Core integrity fell below 20% 1298 | -10/Mines | Met a Derelict shopkeep closing up shop 1327 | -10/Mines | Discovered new exit (range 9) 1329 | -10/Mines | Lost 3 parts (1u2w) 1484 | -10/Mines | Received a Rocket Launcher from a helpful Derelict 1491 | -10/Mines | Learned Materials stockpile data 1541 | -10/Mines | Build established: Scavenger-Mutant 1565 | -10/Mines | Discovered new exit (range 7) 1938 | -10/Mines | Destroyed by S-10 Pest with Light Assault Rifle Last Messages --------------- G-47 Trooper destroyed. Dropped Lgt. Ion Engine. Acquired 27 matter. Dropped Sml. Laser. Acquired 10 matter. Dropped Heat Sink. Acquired Imp. Heat Sink. Acquired 10 matter. Dropped Aluminum Leg. Acquired 10 matter. Dropped Aluminum Leg. K-01 Serf collects debris. Dropped Ion Engine. Acquired Lgt. Nuclear Core. Dropped Lgt. Nuclear Core. Acquired Ion Engine. Acquired 20 matter. System corrupted: Heat flow error (+289). |5U DZ2OR/VUSO=Y9PX5UDEJ7#AJU/